bitfinex-derivatives/quotes_BTCF0:USTF0_20250910
["timestamp","ask_amount","ask_price","bid_price","bid_amount"]
[1757479261610,0.15812372,111570.0,111560.0,0.02248]
[1757479264914,0.15812372,111570.0,111550.0,0.0001]
[1757479265218,0.227895,111560.0,111550.0,0.0001]
[1757479265412,0.0369,111550.0,111540.0,0.02258]
[1757479265618,0.15731372,111550.0,111540.0,0.02248]
[1757479265814,0.15730449,111550.0,111540.0,0.02248]
[1757479266216,0.15630449,111550.0,111540.0,0.02248]
[1757479266412,0.15530449,111550.0,111540.0,0.02248]
[1757479267222,0.15530449,111550.0,111540.0,0.02448]
[1757479267421,0.05980699,111550.0,111540.0,0.02448]
[1757479267611,0.15530449,111550.0,111540.0,0.02448]
[1757479268922,0.15530449,111550.0,111540.0,0.02648]
[1757479272424,0.15530449,111550.0,111540.0,0.004]
[1757479272631,0.15530449,111550.0,111540.0,0.0273]
[1757479273326,0.15530449,111550.0,111540.0,0.004]
[1757479274830,0.15530449,111550.0,111540.0,0.0273]
[1757479275431,0.15530449,111550.0,111540.0,0.004]
[1757479277119,0.15530449,111550.0,111540.0,0.0273]
[1757479277729,0.15530449,111550.0,111540.0,0.004]
[1757479284333,0.20314459,111550.0,111540.0,0.004]
[1757479285533,0.05980699,111550.0,111540.0,0.004]
[1757479285734,0.20314459,111550.0,111540.0,0.004]
[1757479295543,0.27399361,111550.0,111540.0,0.004]
[1757479296140,0.27401715,111550.0,111540.0,0.004]
[1757479303547,0.03594,111540.0,111530.0,0.0001]
[1757479303848,0.03594,111530.0,111520.0,0.0001]
[1757479304153,0.03594,111520.0,111510.0,0.1658576]
[1757479304444,0.1792776,111520.0,111510.0,0.1657576]
[1757479304656,0.1792776,111520.0,111510.0,0.23685442]
[1757479305844,0.03594,111520.0,111510.0,0.23685442]
[1757479306449,0.03594,111520.0,111510.0,0.23785442]
[1757479306953,0.03594,111520.0,111510.0,0.2467664]
[1757479313158,0.03594,111520.0,111510.0,0.1034288]
[1757479313354,0.03594,111520.0,111510.0,0.2467664]
[1757479313556,0.03594,111520.0,111510.0,0.1034288]
[1757479313755,0.03594,111520.0,111510.0,0.2467664]
[1757479317459,0.03594,111520.0,111510.0,0.390104]
[1757479322664,0.01363,111530.0,111510.0,0.650884]
[1757479322864,0.03604,111530.0,111520.0,0.3090952]
[1757479323066,0.03594,111530.0,111520.0,0.3090952]
[1757479325873,0.03694,111530.0,111520.0,0.3090952]
[1757479329074,0.06187039,111530.0,111520.0,0.3090952]
[1757479344589,0.06187039,111530.0,111520.0,0.21354556]
[1757479358005,0.06187039,111530.0,111520.0,0.02242]
[1757479358204,0.06187039,111530.0,111520.0,0.21354556]
[1757479358910,0.06187039,111530.0,111520.0,0.11798278]
[1757479359107,0.06187039,111530.0,111520.0,0.21354556]
[1757479362503,0.06187039,111530.0,111520.0,0.02242]
[1757479362709,0.06187039,111530.0,111520.0,0.21354556]
[1757479365612,0.06187039,111530.0,111520.0,0.11798278]
[1757479369910,0.06187039,111530.0,111520.0,0.21354556]
[1757479372513,0.06187039,111530.0,111520.0,0.02242]
[1757479372713,0.06187039,111530.0,111520.0,0.21354556]
[1757479376117,0.06187039,111530.0,111520.0,0.02242]
[1757479376316,0.06187039,111530.0,111520.0,0.21354556]
[1757479390333,0.06187039,111530.0,111520.0,0.02242]
[1757479390635,0.06187039,111530.0,111520.0,0.21354556]
[1757479398939,0.06187039,111530.0,111520.0,0.02242]
[1757479399139,0.06187039,111530.0,111520.0,0.21354556]
[1757479403337,0.02593039,111530.0,111520.0,0.31420834]
[1757479403642,0.02593039,111530.0,111520.0,0.56420834]
[1757479404342,0.02593039,111530.0,111520.0,0.46864556]
[1757479405441,0.02593039,111530.0,111520.0,0.56420834]
[1757479406145,0.02593039,111530.0,111520.0,0.46864556]
[1757479406346,0.02593039,111530.0,111520.0,0.70744085]
[1757479406534,0.001,111530.0,111520.0,0.70744085]
[1757479419364,0.001,111530.0,111520.0,0.45744085]
[1757479422266,0.02603002,111530.0,111520.0,0.45744085]
[1757479422766,0.02603002,111530.0,111520.0,1.26788085]
[1757479442185,0.02603002,111530.0,111520.0,0.45744085]
[1757479442382,0.04807002,111530.0,111520.0,1.26784085]
[1757479444086,0.04807002,111530.0,111520.0,0.45744085]
[1757479444384,0.06071002,111530.0,111520.0,0.3090339]
[1757479444585,0.06071002,111530.0,111520.0,1.1194339]
[1757479445890,0.04807002,111530.0,111520.0,1.1302139]
[1757479447289,0.04807002,111530.0,111520.0,0.3198139]
[1757479447588,0.06071002,111530.0,111520.0,1.1194339]
[1757479455595,0.04807002,111530.0,111520.0,1.1302139]
[1757479457498,0.06081002,111530.0,111520.0,0.3090339]
[1757479457698,0.06081002,111530.0,111520.0,1.1194339]
[1757479458604,0.45411697,111530.0,111510.0,0.0801088]
[1757479458803,0.20421697,111530.0,111520.0,0.16547695]
[1757479459100,0.20411697,111530.0,111520.0,0.16547695]
[1757479462397,0.20411697,111530.0,111520.0,0.3087839]
[1757479466403,0.06081002,111530.0,111520.0,0.11774784]
[1757479471507,0.06081002,111530.0,111520.0,0.21332568]
[1757479492525,0.02603002,111530.0,111520.0,0.65934792]
[1757479492829,0.001,111530.0,111520.0,0.65934792]
[1757479496032,0.001,111530.0,111520.0,0.56377008]
[1757479496435,0.001,111530.0,111520.0,0.47410568]
[1757479498134,0.02417,111530.0,111520.0,0.47410568]
[1757479503637,0.02517,111530.0,111520.0,0.47410568]
[1757479503838,0.02617,111530.0,111520.0,0.47410568]
[1757479506836,0.003,111530.0,111520.0,0.47410568]
[1757479507143,0.02617,111530.0,111520.0,0.47410568]
[1757479509342,0.02617,111530.0,111520.0,0.28295]
[1757479509544,0.02617,111530.0,111520.0,1.28498568]
[1757479510944,0.02617,111530.0,111520.0,0.47410568]
[1757479511138,0.02617,111530.0,111520.0,1.28494568]
[1757479511343,0.02617,111530.0,111520.0,0.47410568]
[1757479511645,0.02617,111530.0,111520.0,1.28494568]
[1757479512044,0.05134864,111530.0,111520.0,1.28494568]
[1757479513349,0.05134864,111530.0,111520.0,0.47410568]
[1757479513550,0.05134864,111530.0,111520.0,1.28486568]
[1757479514946,0.05134864,111530.0,111520.0,0.47410568]
[1757479515251,0.05134864,111530.0,111520.0,1.28482568]
[1757479517554,0.05134864,111530.0,111520.0,1.28478568]
[1757479517755,0.31503864,111530.0,111520.0,0.02217]
[1757479517958,0.31503864,111530.0,111520.0,0.11774784]
[1757479518157,0.31503864,111530.0,111520.0,0.21332568]
[1757479519452,0.31503864,111530.0,111520.0,0.11774784]
[1757479519653,0.31503864,111530.0,111520.0,0.21332568]
[1757479519957,0.31503864,111530.0,111520.0,0.11774784]
[1757479520646,0.41061648,111530.0,111520.0,0.11774784]
[1757479520851,0.41061648,111530.0,111520.0,0.02217]
[1757479521249,0.31503864,111530.0,111520.0,0.11774784]
[1757479526463,0.45840075,111530.0,111520.0,0.16553211]
[1757479527164,0.31503864,111530.0,111520.0,0.30889422]
[1757479527364,0.45840075,111530.0,111520.0,0.30889422]
[1757479538569,0.45840075,111530.0,111520.0,0.02217]
[1757479538769,0.45840075,111530.0,111520.0,0.30889422]
[1757479539276,0.20840075,111530.0,111520.0,0.30889422]
[1757479544881,0.18322211,111530.0,111520.0,0.30889422]
[1757479545086,0.20832047,111530.0,111520.0,0.30889422]
[1757479545283,0.06495836,111530.0,111520.0,0.30889422]
[1757479546990,0.02809836,111530.0,111520.0,0.71303633]
[1757479548185,0.02809836,111530.0,111520.0,0.56967422]
[1757479552186,0.05025836,111530.0,111520.0,0.56967422]
[1757479552694,0.06401836,111530.0,111520.0,0.55889422]
[1757479557192,0.06401836,111530.0,111520.0,0.55889353]
[1757479575611,0.06401836,111530.0,111520.0,0.27216931]
[1757479576016,0.06401836,111530.0,111520.0,0.55889353]
[1757479579023,0.06401836,111530.0,111520.0,0.30889353]
[1757479588418,0.06401836,111530.0,111520.0,0.21328907]
[1757479603136,0.06401836,111530.0,111520.0,0.02216931]
[1757479603336,0.06401836,111530.0,111520.0,0.21328907]
[1757479612942,0.05025836,111530.0,111520.0,0.22406907]
[1757479613141,0.02809836,111530.0,111520.0,0.22406907]
[1757479627550,0.04983836,111530.0,111520.0,0.22406907]
[1757479632152,0.02809836,111530.0,111520.0,0.22406907]
[1757479634051,0.02809836,111530.0,111520.0,0.56962895]
[1757479634652,0.02809836,111530.0,111520.0,0.47406907]
[1757479635357,0.003,111530.0,111520.0,0.47406907]
[1757479636760,0.003,111530.0,111520.0,0.56962895]
[1757479637259,0.0001,111540.0,111530.0,0.02592]
[1757479637459,0.0001348,111540.0,111530.0,0.93163988]
[1757479638253,0.0001,111550.0,111540.0,0.00387]
[1757479638453,0.0001,111560.0,111550.0,0.02692]
[1757479638664,0.04708096,111560.0,111550.0,0.02692]
[1757479639059,0.02502096,111560.0,111550.0,0.21803976]
[1757479639560,0.02902096,111560.0,111550.0,0.21803976]
[1757479641170,0.02602096,111560.0,111550.0,0.21803976]
[1757479644369,0.02702096,111560.0,111550.0,0.21803976]
[1757479646268,0.0269763,111560.0,111550.0,0.21803976]
[1757479647174,0.002,111560.0,111550.0,0.21803976]
[1757479648376,0.002,111560.0,111550.0,0.3134068]
[1757479652181,0.02696763,111560.0,111550.0,0.3134068]
[1757479653978,0.02696772,111560.0,111550.0,0.3134068]
[1757479662387,0.02518,111560.0,111550.0,0.3134068]
[1757479662986,0.002,111560.0,111550.0,0.3134068]
[1757479663386,0.04993221,111560.0,111550.0,0.3134068]
[1757479667387,0.02675221,111560.0,111550.0,0.3134068]
[1757479679192,0.04993221,111560.0,111550.0,0.02692]
[1757479679397,0.04993221,111560.0,111550.0,1.0177668]
[1757479679904,0.04993221,111560.0,111550.0,0.3134068]
[1757479687100,0.06292221,111560.0,111550.0,1.1232868]
[1757479689304,0.06299718,111560.0,111550.0,0.3083068]
[1757479689504,0.06299718,111560.0,111550.0,1.1181868]
[1757479693606,0.06299718,111560.0,111550.0,0.9749434]
[1757479693808,0.06299718,111560.0,111550.0,1.1181868]
[1757479708323,0.06299718,111560.0,111550.0,0.9272052]
[1757479711724,0.06299718,111560.0,111550.0,0.9271652]
[1757479721327,0.31299718,111560.0,111550.0,0.1173252]
[1757479721530,0.40850238,111560.0,111550.0,0.02182]
[1757479722129,0.40850238,111560.0,111550.0,0.1173252]
[1757479727332,0.31298774,111560.0,111550.0,0.1173252]
[1757479729732,0.31298774,111560.0,111550.0,0.02182]
[1757479729934,0.31298774,111560.0,111550.0,0.1173252]
[1757479731434,0.40849294,111560.0,111550.0,0.1173252]
[1757479738140,0.31298774,111560.0,111550.0,0.1173252]
[1757479738541,0.40849294,111560.0,111550.0,0.1173252]
[1757479741645,0.06298774,111560.0,111550.0,0.1173252]
[1757479742843,0.06298774,111560.0,111550.0,0.02182]
[1757479743038,0.15849127,111560.0,111540.0,0.07069586]
[1757479743239,0.15859127,111560.0,111550.0,0.1181952]
[1757479743537,0.15849127,111560.0,111550.0,0.1181952]
[1757479744448,0.06298607,111560.0,111550.0,0.1181952]
[1757479746747,0.06198607,111560.0,111550.0,0.1181952]
[1757479746948,0.06298607,111560.0,111550.0,0.1181952]
[1757479754457,0.03817,111560.0,111550.0,0.1181952]
[1757479754653,0.06304291,111560.0,111550.0,0.1181952]
[1757479758046,0.03421,111550.0,111540.0,0.0225148]
[1757479758250,0.15458811,111550.0,111540.0,0.0224148]
[1757479760054,0.15658811,111550.0,111540.0,0.0224148]
[1757479760954,0.15858811,111550.0,111540.0,0.0224148]
[1757479761356,0.15958811,111550.0,111540.0,0.0224148]
[1757479763952,0.15958811,111550.0,111540.0,0.0001348]
[1757479764658,0.23296131,111550.0,111540.0,0.0001348]
[1757479770362,0.28078596,111550.0,111540.0,0.0001348]
[1757479771662,0.42411581,111550.0,111540.0,0.0001348]
[1757479772069,1.23403581,111550.0,111540.0,0.0001348]
[1757479772768,1.23399581,111550.0,111540.0,0.0001348]
[1757479775778,0.42411581,111550.0,111540.0,0.0001348]
[1757479775961,1.23399581,111550.0,111540.0,0.0001348]
[1757479777165,1.09066596,111550.0,111540.0,0.0001348]
[1757479777370,1.23399581,111550.0,111540.0,0.0001348]
[1757479778271,1.23393271,111550.0,111540.0,0.0001348]
[1757479781179,0.02480981,111550.0,111540.0,0.86890689]
[1757479781475,0.01339,111590.0,111570.0,0.02831]
[1757479781678,0.03535,111590.0,111580.0,0.45319955]
[1757479781990,0.03535,111590.0,111580.0,0.38029104]
[1757479782177,0.03535,111590.0,111580.0,0.34363134]
[1757479782367,0.03535,111590.0,111570.0,0.0233448]
[1757479782368,0.03535,111580.0,111570.0,0.0233448]
[1757479782676,0.03535,111580.0,111570.0,0.16667465]
[1757479784479,0.03635,111580.0,111570.0,0.16667465]
[1757479784975,0.001,111580.0,111570.0,0.5651045]
[1757479785282,0.001,111580.0,111570.0,0.67270273]
[1757479786486,0.001,111580.0,111570.0,0.74328095]
[1757479787582,0.001,111580.0,111570.0,0.36699815]
[1757479787877,0.02206,111580.0,111570.0,0.65365785]
[1757479788181,0.02306,111580.0,111570.0,0.65365785]
[1757479789881,0.001,111580.0,111570.0,0.65365785]
[1757479791182,0.01329,111590.0,111570.0,0.65365785]
[1757479791483,0.03535,111590.0,111580.0,0.3098697]
[1757479792782,0.03735,111590.0,111580.0,0.3098697]
[1757479793381,0.06181381,111590.0,111580.0,0.3098697]
[1757479796178,0.06281381,111590.0,111580.0,0.3098697]
[1757479797877,0.06181381,111590.0,111580.0,0.3098697]
[1757479798077,0.06381381,111590.0,111580.0,0.3098697]
[1757479802086,0.45714366,111590.0,111580.0,0.02321]
[1757479802288,0.45714366,111590.0,111580.0,0.14332985]
[1757479802687,0.45714366,111590.0,111570.0,0.232018]
[1757479802991,0.03535,111580.0,111570.0,0.11189815]
[1757479803178,0.05981381,111580.0,111570.0,0.11189815]
[1757479804079,0.05981381,111580.0,111570.0,0.255228]
[1757479804988,0.05981381,111580.0,111570.0,0.11189815]
[1757479805191,0.05981381,111580.0,111570.0,0.255228]
[1757479805880,0.03535,111580.0,111570.0,0.255228]
[1757479806081,0.05983567,111580.0,111570.0,0.255228]
[1757479809092,0.05983567,111580.0,111570.0,0.09392302]
[1757479809294,0.05983567,111580.0,111570.0,0.23725287]
[1757479810181,0.06083567,111580.0,111570.0,0.23725287]
[1757479812292,0.02548567,111580.0,111570.0,0.64126272]
[1757479813197,0.02548567,111580.0,111570.0,0.80283072]
[1757479813394,0.02548567,111580.0,111570.0,0.65950087]
[1757479828509,0.001,111580.0,111570.0,0.65950087]
[1757479828704,0.02532181,111580.0,111570.0,0.65950087]
[1757479830309,0.02532181,111580.0,111570.0,0.56374109]
[1757479831113,0.001,111580.0,111570.0,0.56374109]
[1757479832214,0.02532137,111580.0,111570.0,0.56374109]
[1757479834116,0.001,111580.0,111570.0,0.56374109]
[1757479835919,0.02271,111580.0,111570.0,1.37530109]
[1757479836718,0.001,111580.0,111570.0,1.37530109]
[1757479839315,0.001,111580.0,111570.0,1.12530109]
[1757479840917,0.06027248,111580.0,111570.0,1.01901113]
[1757479841121,0.40572244,111580.0,111570.0,0.20761113]
[1757479841424,0.31027248,111580.0,111570.0,0.20761113]
[1757479842216,0.02528248,111580.0,111570.0,0.21271113]
[1757479843522,0.001,111580.0,111570.0,0.30816109]
[1757479847822,0.001,111580.0,111570.0,0.39778399]
[1757479848026,0.0001,111590.0,111580.0,0.31238988]
[1757479848231,0.0001,111600.0,111590.0,0.02727]
[1757479848426,0.04594171,111600.0,111590.0,0.12271996]
[1757479850926,0.04794171,111600.0,111590.0,0.12271996]
[1757479851933,0.05094171,111600.0,111590.0,0.12271996]
[1757479852531,0.06422171,111600.0,111590.0,0.12271996]
[1757479854127,0.06422171,111600.0,111590.0,0.11861996]
[1757479856833,0.31422171,111600.0,111590.0,0.11861996]
[1757479861834,0.50512163,111600.0,111570.0,0.08895117]
[1757479862047,0.03494,111580.0,111570.0,0.20757113]
[1757479863739,0.02166,111580.0,111570.0,0.20757113]
[1757479865442,0.02166,111580.0,111570.0,0.11212117]
[1757479865639,0.02166,111580.0,111570.0,0.20757113]
[1757479865839,0.02266,111580.0,111570.0,0.20757113]
[1757479870541,0.02266,111580.0,111570.0,0.21267113]
[1757479870738,0.001,111580.0,111570.0,0.21267113]
[1757479870943,0.001,111580.0,111570.0,0.30812109]
[1757479873544,0.001,111580.0,111570.0,0.55812109]
[1757479882253,0.02527286,111580.0,111570.0,0.55812109]
[1757479883554,0.001,111580.0,111570.0,0.55812109]
[1757479885954,0.02527713,111580.0,111570.0,0.55812109]
[1757479892367,0.001,111580.0,111570.0,0.65358885]
[1757479893560,0.001,111580.0,111570.0,0.36722117]
[1757479893760,0.02358,111580.0,111570.0,1.46402885]
[1757479893960,0.001,111580.0,111570.0,1.46402885]
[1757479899279,0.001,111580.0,111570.0,1.21402885]
[1757479906181,0.001,111580.0,111570.0,0.40358885]
[1757479906380,0.001,111580.0,111570.0,1.21382885]
[1757479909686,0.0001,111590.0,111580.0,0.02637]
[1757479909890,0.0001,111600.0,111590.0,0.02614]
[1757479910089,0.02426321,111600.0,111590.0,1.12270768]
[1757479910889,0.0001,111610.0,111590.0,1.12270768]
[1757479911086,0.0001,111610.0,111600.0,0.32031768]
[1757479911384,0.01338,111620.0,111600.0,0.32031768]
[1757479911585,0.0361,111620.0,111610.0,0.16645384]
[1757479911789,0.31024959,111620.0,111610.0,0.16645384]
[1757479911984,0.06024959,111620.0,111610.0,0.16645384]
[1757479912587,0.31124959,111620.0,111610.0,0.02327]
[1757479912793,0.03668,111600.0,111590.0,0.0234048]
[1757479912992,0.03668,111600.0,111590.0,0.16658864]
[1757479919099,0.03668,111600.0,111590.0,0.30977248]
[1757479937206,0.06086848,111600.0,111590.0,0.30977248]
[1757479954011,0.02418848,111600.0,111590.0,0.32045248]
[1757479954313,0.01396,111630.0,111610.0,0.0946908]
[1757479954513,0.01291,111640.0,111620.0,0.31134027]
[1757479954705,0.03466,111640.0,111630.0,0.11752009]
[1757479954911,0.03466,111640.0,111630.0,0.1264085]
[1757479955616,0.03766,111640.0,111630.0,0.1264085]
[1757479956212,0.38802009,111640.0,111630.0,0.02216]
[1757479956413,0.29266,111640.0,111630.0,0.11752009]
[1757479957420,0.29366,111640.0,111630.0,0.19033898]
[1757479959415,0.04366,111640.0,111630.0,0.19033898]
[1757479966317,0.06750396,111640.0,111630.0,0.19033898]
[1757479973114,0.06750396,111640.0,111630.0,0.09497889]
[1757479973317,0.06750396,111640.0,111630.0,0.19033898]
[1757479975228,0.06750778,111640.0,111630.0,0.19033898]
[1757479977126,0.16286787,111640.0,111630.0,0.19033898]
[1757479977628,0.16286787,111640.0,111630.0,0.09497889]
[1757479977830,1.22270787,111640.0,111630.0,0.07281889]
[1757479978023,1.22270787,111640.0,111620.0,0.10444708]
[1757479978224,0.0352,111630.0,111620.0,0.12773708]
[1757479979322,0.0352,111630.0,111620.0,0.22309717]
[1757479979522,0.05906401,111630.0,111620.0,0.12773708]
[1757479979926,0.05906401,111630.0,111620.0,0.22309717]
[1757479981333,0.06206401,111630.0,111620.0,0.22309717]
[1757479981534,0.06606401,111630.0,111620.0,0.29600857]
[1757479982333,0.0422,111630.0,111620.0,0.29600857]
[1757479982637,0.02839,111630.0,111620.0,0.29600857]
[1757479982937,0.0422,111630.0,111620.0,0.29600857]
[1757479983333,0.06610045,111630.0,111620.0,0.29600857]
[1757479997849,0.03090045,111630.0,111620.0,0.31435979]
[1757479998049,0.03090045,111630.0,111620.0,0.31745979]
[1757479998642,0.05315045,111630.0,111620.0,0.31745979]
[1757480003750,0.03090045,111630.0,111620.0,0.31745979]
[1757480003939,0.05315045,111630.0,111620.0,0.31745979]
[1757480004551,0.03090045,111630.0,111620.0,0.31745979]
[1757480005652,0.05315045,111630.0,111620.0,0.31745979]
[1757480007853,0.05315045,111630.0,111620.0,0.31435979]
[1757480008054,0.06680045,111630.0,111620.0,0.31435979]
[1757480012551,0.06680045,111630.0,111620.0,0.2189997]
[1757480013354,0.06680045,111630.0,111620.0,0.31435979]
[1757480014450,0.06680045,111630.0,111620.0,0.2189997]
[1757480015956,0.06680045,111630.0,111620.0,0.31435979]
[1757480016358,0.06680045,111630.0,111620.0,0.40982481]
[1757480017156,0.06680045,111630.0,111620.0,0.12363961]
[1757480017353,0.06680045,111630.0,111620.0,0.40982481]
[1757480036167,0.06680045,111630.0,111620.0,0.39147359]
[1757480036366,0.20989305,111630.0,111620.0,0.39147359]
[1757480039461,0.20989305,111630.0,111620.0,0.2394288]
[1757480040061,0.20989305,111630.0,111620.0,0.0963362]
[1757480040266,0.20989305,111630.0,111620.0,0.2394288]
[1757480041166,0.20989305,111630.0,111620.0,0.3825214]
[1757480041366,1.01961305,111630.0,111620.0,0.3825214]
[1757480041570,0.20989305,111630.0,111620.0,0.3825214]
[1757480041768,1.01961305,111630.0,111620.0,0.3825214]
[1757480042471,0.87652045,111630.0,111620.0,0.3825214]
[1757480042668,1.01961305,111630.0,111620.0,0.3825214]
[1757480045568,1.01961305,111630.0,111620.0,0.2394288]
[1757480047370,1.26961305,111630.0,111620.0,0.0730462]
[1757480047571,1.26961305,111630.0,111620.0,0.0001348]
[1757480048160,1.26961305,111630.0,111620.0,0.1432274]
[1757480048468,0.45989305,111630.0,111620.0,0.1660374]
[1757480048672,1.26961305,111630.0,111620.0,0.1660374]
[1757480052183,0.45989305,111630.0,111620.0,0.1660374]
[1757480052380,1.26961305,111630.0,111620.0,0.1660374]
[1757480058883,1.26961305,111630.0,111620.0,0.0001348]
[1757480059086,1.26961305,111630.0,111620.0,0.1432274]
[1757480059582,1.26961305,111630.0,111620.0,0.0001348]
[1757480059981,1.26961305,111630.0,111620.0,0.1432274]
[1757480062086,1.26961305,111630.0,111620.0,0.0001348]
[1757480063593,1.12652045,111630.0,111620.0,0.0001348]
[1757480063791,1.26961305,111630.0,111620.0,0.0001348]
[1757480064190,1.01961305,111630.0,111620.0,0.0001348]
[1757480064493,0.40109512,111630.0,111620.0,0.0001348]
[1757480064692,1.21081512,111630.0,111620.0,0.0001348]
[1757480067197,1.06772252,111630.0,111620.0,0.0001348]
[1757480068096,0.03482,111590.0,111580.0,0.03938352]
[1757480068396,0.03482,111590.0,111580.0,0.32556872]
[1757480068697,0.1779126,111590.0,111580.0,0.18247612]
[1757480068893,0.20187613,111590.0,111580.0,0.02139]
[1757480069397,0.20187613,111590.0,111580.0,0.02239]
[1757480070195,0.20287613,111590.0,111580.0,0.09422364]
[1757480070695,0.20287613,111590.0,111580.0,0.23731624]
[1757480070998,0.20387613,111590.0,111580.0,0.23731624]
[1757480071192,1.01359613,111590.0,111580.0,0.23731624]
[1757480071398,1.01363613,111590.0,111580.0,0.23731624]
[1757480072303,0.9896726,111590.0,111580.0,0.23731624]
[1757480072997,0.9926726,111590.0,111580.0,0.23631624]
[1757480073901,0.9926726,111590.0,111580.0,0.1644826]
[1757480074791,0.005,111590.0,111580.0,0.5626752]
[1757480074993,0.005,111590.0,111580.0,0.7057678]
[1757480075195,0.005,111590.0,111580.0,0.77752975]
[1757480075502,0.005,111590.0,111580.0,0.79582534]
[1757480076296,0.005,111590.0,111580.0,0.55740548]
[1757480076696,0.002,111590.0,111580.0,0.55740548]
[1757480076892,0.0001,111600.0,111590.0,0.01068]
[1757480077198,0.0001348,111600.0,111590.0,0.12739897]
[1757480082908,0.0219248,111600.0,111590.0,0.12739897]
[1757480086007,0.0357648,111600.0,111590.0,0.11671897]
[1757480086314,0.13119377,111600.0,111590.0,0.02129]
[1757480086505,0.13119377,111600.0,111590.0,0.11671897]
[1757480088513,0.13119377,111600.0,111590.0,0.02129]
[1757480088907,0.13319377,111600.0,111590.0,0.02129]
[1757480092312,0.15714565,111600.0,111590.0,0.02129]
[1757480092508,0.13319377,111600.0,111590.0,0.02129]
[1757480093319,0.15714872,111600.0,111590.0,0.02129]
[1757480108426,0.06171975,111600.0,111590.0,0.02129]
[1757480108627,0.06171975,111600.0,111590.0,0.11671897]
[1757480109830,0.06171975,111600.0,111590.0,0.02129]
[1757480110034,0.06171975,111600.0,111590.0,0.11671897]
[1757480110232,0.04787975,111600.0,111590.0,0.11671897]
[1757480110421,0.04787975,111600.0,111590.0,0.12181897]
[1757480112636,0.06158975,111600.0,111590.0,0.11671897]
[1757480112932,0.06158975,111600.0,111590.0,0.02129]
[1757480113233,0.06158975,111600.0,111590.0,0.11671897]
[1757480120243,0.06158975,111600.0,111590.0,0.02129]
[1757480120440,0.06158975,111600.0,111590.0,0.11671897]
[1757480130550,0.02608975,111600.0,111590.0,0.12181897]
[1757480131346,0.04722975,111600.0,111590.0,0.12181897]
[1757480132952,0.06093975,111600.0,111590.0,0.11671897]
[1757480135857,0.05893975,111600.0,111590.0,0.11671897]
[1757480138350,0.05893975,111600.0,111590.0,0.16444784]
[1757480140660,0.02408975,111600.0,111590.0,0.31270568]
[1757480144167,0.05970975,111600.0,111590.0,0.30760568]
[1757480147165,0.05970975,111600.0,111590.0,0.16444784]
[1757480147558,0.05970975,111600.0,111590.0,0.30760568]
[1757480160577,0.04692975,111600.0,111590.0,0.30760568]
[1757480160782,0.02408975,111600.0,111590.0,0.31270568]
[1757480161283,0.04692975,111600.0,111590.0,0.31270568]
[1757480161582,0.02408975,111600.0,111590.0,0.56270568]
[1757480162981,0.0001348,111600.0,111590.0,0.56270568]
[1757480163280,0.02412003,111600.0,111590.0,0.56270568]
[1757480164277,0.0001,111610.0,111590.0,1.51558352]
[1757480164477,0.03572,111640.0,111630.0,0.01224]
[1757480164684,0.03562,111640.0,111630.0,0.29855568]
[1757480165578,0.04062,111640.0,111630.0,0.29855568]
[1757480166179,0.04062,111640.0,111630.0,0.15539784]
[1757480167780,0.04362,111640.0,111630.0,0.15539784]
[1757480168680,0.04362,111640.0,111630.0,0.16422079]
[1757480169187,0.04362,111640.0,111630.0,0.23441725]
[1757480172184,0.04362,111640.0,111630.0,0.09125941]
[1757480172391,0.04362,111640.0,111630.0,0.23441725]
[1757480172585,0.02078,111640.0,111630.0,0.39585318]
[1757480172786,0.008,111640.0,111630.0,0.39585318]
[1757480172988,0.008,111640.0,111630.0,1.59861102]
[1757480173288,0.008,111640.0,111630.0,0.87858652]
[1757480173481,0.008,111640.0,111630.0,1.68818652]
[1757480173688,0.00035,111640.0,111630.0,1.68818652]
[1757480173889,0.01278,111660.0,111630.0,1.68818652]
[1757480174090,0.01278,111660.0,111650.0,0.28631568]
[1757480174390,0.03396,111670.0,111650.0,0.28631568]
[1757480174588,0.03396,111670.0,111660.0,0.28631568]
[1757480175590,0.17711784,111670.0,111660.0,0.28631568]
[1757480176090,0.03396,111670.0,111660.0,0.28631568]
[1757480176291,0.20075852,111670.0,111660.0,0.28631568]
[1757480176486,0.06460068,111670.0,111660.0,0.28631568]
[1757480176690,0.07060068,111670.0,111660.0,0.28631568]
[1757480177889,0.07059189,111670.0,111660.0,0.28631568]
[1757480178490,0.07059189,111670.0,111640.0,0.16155826]
[1757480178790,0.07059189,111670.0,111660.0,0.14315784]
[1757480179490,0.04696,111670.0,111660.0,0.14315784]
[1757480179694,0.03696,111670.0,111660.0,0.14315784]
[1757480179991,0.04096,111670.0,111660.0,0.14315784]
[1757480180191,0.0645753,111670.0,111660.0,0.14315784]
[1757480180387,0.0625753,111670.0,111660.0,0.14315784]
[1757480180794,0.03488,111660.0,111640.0,1.17301826]
[1757480181096,0.03488,111660.0,111650.0,0.14315784]
[1757480181295,0.03488,111660.0,111650.0,0.28631568]
[1757480181489,0.03488,111660.0,111650.0,0.14315784]
[1757480183099,0.03588,111660.0,111650.0,0.14315784]
[1757480186198,0.05949629,111660.0,111650.0,0.14315784]
[1757480195216,0.03488,111650.0,111640.0,0.0001348]
[1757480195519,0.20165413,111650.0,111640.0,0.14329264]
[1757480195721,0.20165413,111650.0,111640.0,0.28645048]
[1757480195921,0.20165413,111650.0,111640.0,0.14329264]
[1757480196416,0.20165413,111650.0,111640.0,0.14429264]
[1757480196827,0.20165413,111650.0,111640.0,0.14529264]
[1757480197514,0.20165413,111650.0,111640.0,0.0021348]
[1757480197712,0.59481197,111650.0,111640.0,0.0021348]
[1757480198414,0.45224644,111650.0,111640.0,0.0021348]
[1757480199323,0.20224644,111650.0,111640.0,0.0021348]
[1757480200227,0.20324644,111650.0,111640.0,0.0011348]
[1757480201117,0.20324644,111650.0,111640.0,0.0001348]
[1757480204226,0.15489123,111650.0,111640.0,0.0001348]
[1757480205024,0.20324644,111650.0,111640.0,0.0001348]
[1757480205229,0.15489123,111650.0,111640.0,0.0001348]
[1757480216430,0.96425123,111650.0,111640.0,0.0001348]
[1757480222435,0.86885629,111650.0,111640.0,0.0001348]
[1757480222732,0.96425123,111650.0,111640.0,0.0001348]
[1757480224639,0.05949629,111650.0,111640.0,0.0001348]
[1757480224829,0.96425123,111650.0,111640.0,0.0001348]
[1757480226629,0.15489123,111650.0,111640.0,0.0001348]
[1757480226833,0.76901123,111650.0,111640.0,0.0001348]
[1757480250349,0.86440617,111650.0,111640.0,0.0001348]
[1757480250557,0.03391,111640.0,111630.0,0.01827809]
[1757480250747,0.24831617,111640.0,111630.0,0.01827809]
[1757480252751,0.24831617,111640.0,111630.0,0.01927809]
[1757480253656,0.87948123,111640.0,111630.0,0.01927809]
[1757480253871,0.87948123,111640.0,111630.0,0.01827809]